[Event "Open NK Rapid 2025"]
[Site "Helmond, Netherlands"]
[Date "2025.05.03"]
[Round "8.5"]
[White "Beeke, Bob"]
[Black "Roebers, Eline"]
[Result "0-1"]
[TimeControl "15+5"]
[WhiteFideId "1011634"]
[BlackFideId "1058401"]
[WhiteElo "2217"]
[BlackElo "2390"]

1. d4 {[%clk 00:15:09]} {[%emt 00:00:01]} f5 {[%clk 00:15:10]} {[%emt
00:00:01]} 2. c4 {[%clk 00:15:03]} {[%emt 00:00:11]} Nf6 {[%clk 00:15:13]}
{[%emt 00:00:02]} 3. Nc3 {[%clk 00:15:07]} d6 {[%clk 00:15:17]} 4. g3 {[%clk
00:15:08]} {[%emt 00:00:03]} g6 {[%clk 00:15:20]} {[%emt 00:00:02]} 5. Bg2
{[%clk 00:15:12]} {[%emt 00:00:01]} Bg7 {[%clk 00:15:24]} 6. Nh3 {[%clk
00:15:13]} {[%emt 00:00:05]} e6 {[%clk 00:15:14]} {[%emt 00:00:15]} 7. O-O
{[%clk 00:15:05]} {[%emt 00:00:13]} Nc6 {[%clk 00:14:26]} {[%emt 00:00:54]} 8.
e3 {[%clk 00:14:11]} {[%emt 00:00:58]} Qe7 {[%clk 00:14:18]} {[%emt 00:00:13]}
9. b3 {[%clk 00:14:08]} {[%emt 00:00:08]} O-O {[%clk 00:14:05]} {[%emt
00:00:18]} 10. Bb2 {[%clk 00:13:54]} {[%emt 00:00:20]} Nd8 {[%clk 00:13:32]}
{[%emt 00:00:37]} 11. Re1 {[%clk 00:12:32]} {[%emt 00:01:27]} Nf7 {[%clk
00:13:00]} {[%emt 00:00:37]} 12. e4 {[%clk 00:12:28]} {[%emt 00:00:09]} fxe4
{[%clk 00:12:18]} {[%emt 00:00:47]} 13. Nxe4 {[%clk 00:12:31]} {[%emt
00:00:02]} Nxe4 {[%clk 00:12:22]} {[%emt 00:00:01]} 14. Rxe4 {[%clk 00:12:34]}
{[%emt 00:00:03]} a5 {[%clk 00:11:57]} {[%emt 00:00:30]} 15. Nf4 {[%clk
00:12:28]} {[%emt 00:00:10]} Bd7 {[%clk 00:11:09]} {[%emt 00:00:53]} 16. Qe2
{[%clk 00:11:14]} {[%emt 00:01:19]} Rae8 {[%clk 00:10:41]} {[%emt 00:00:34]} 17.
Re1 {[%clk 00:11:13]} {[%emt 00:00:05]} Nd8 {[%clk 00:09:22]} {[%emt 00:01:24]}
18. Nd5 {[%clk 00:11:05]} {[%emt 00:00:12]} Qg5 {[%clk 00:08:56]} {[%emt
00:00:32]} 19. Nxc7 {[%clk 00:10:27]} {[%emt 00:00:43]} Re7 {[%clk 00:09:01]}
20. h4 {[%clk 00:10:10]} {[%emt 00:00:23]} Qh5 {[%clk 00:08:04]} {[%emt
00:01:01]} 21. Qxh5 {[%clk 00:09:56]} {[%emt 00:00:18]} gxh5 {[%clk 00:08:08]}
{[%emt 00:00:01]} 22. R4e2 {[%clk 00:09:12]} {[%emt 00:00:50]} e5 {[%clk
00:07:22]} {[%emt 00:00:51]} 23. dxe5 {[%clk 00:08:43]} {[%emt 00:00:34]} Bg4
{[%clk 00:07:11]} {[%emt 00:00:17]} 24. Nd5 {[%clk 00:08:36]} {[%emt 00:00:11]}
Ref7 {[%clk 00:07:02]} {[%emt 00:00:15]} 25. Rd2 {[%clk 00:07:09]} {[%emt
00:01:31]} dxe5 {[%clk 00:07:05]} {[%emt 00:00:02]} 26. Bxe5 {[%clk 00:07:00]}
{[%emt 00:00:14]} Re8 {[%clk 00:07:09]} {[%emt 00:00:02]} 27. f4 {[%clk
00:07:00]} {[%emt 00:00:04]} Nc6 {[%clk 00:06:58]} {[%emt 00:00:17]} 28. Ne3
{[%clk 00:06:29]} {[%emt 00:00:36]} Bxe5 {[%clk 00:06:59]} {[%emt 00:00:03]} 29.
Nxg4 {[%clk 00:04:50]} {[%emt 00:01:44]} Bd4+ {[%clk 00:06:44]} {[%emt
00:00:20]} 30. Kh2 {[%clk 00:03:55]} {[%emt 00:00:59]} Rxe1 {[%clk 00:06:47]}
{[%emt 00:00:03]} 31. Nh6+ {[%clk 00:03:52]} {[%emt 00:00:08]} Kg7 {[%clk
00:06:31]} {[%emt 00:00:22]} 32. Nxf7 {[%clk 00:02:55]} {[%emt 00:01:02]} Bg1+
{[%clk 00:06:22]} {[%emt 00:00:14]} 33. Kh3 {[%clk 00:02:59]} Kxf7 {[%clk
00:06:25]} {[%emt 00:00:02]} 34. Rd7+ {[%clk 00:02:58]} {[%emt 00:00:06]} Kf6
{[%clk 00:05:44]} {[%emt 00:00:46]} 35. Rxh7 {[%clk 00:02:48]} {[%emt
00:00:15]} Nd4 {[%clk 00:03:48]} {[%emt 00:02:01]} 36. Rxh5 {[%clk 00:01:59]}
{[%emt 00:00:54]} Re3 {[%clk 00:03:29]} {[%emt 00:00:24]} 37. Bxb7 {[%clk
00:01:22]} {[%emt 00:00:43]} Bf2 {[%clk 00:03:16]} {[%emt 00:00:18]} 38. Kg2
{[%clk 00:00:57]} {[%emt 00:00:29]} Bxg3 {[%clk 00:03:03]} {[%emt 00:00:19]} 39.
Rxa5 {[%clk 00:00:52]} {[%emt 00:00:10]} Bxf4 {[%clk 00:02:43]} {[%emt
00:00:25]} 40. Ra6+ {[%clk 00:00:38]} {[%emt 00:00:19]} Kf5 {[%clk 00:02:25]}
{[%emt 00:00:22]} 41. c5 {[%clk 00:00:22]} {[%emt 00:00:21]} Re2+ {[%clk
00:02:07]} {[%emt 00:00:23]} 42. Kf1 {[%clk 00:00:26]} {[%emt 00:00:01]} Rc2
{[%clk 00:02:10]} {[%emt 00:00:01]} 43. b4 {[%clk 00:00:18]} {[%emt 00:00:15]}
Bg3 {[%clk 00:01:58]} {[%emt 00:00:16]} 44. Ra8 {[%clk 00:00:15]} {[%emt
00:00:08]} Rf2+ {[%clk 00:01:35]} {[%emt 00:00:28]} 45. Ke1 {[%clk 00:00:13]}
{[%emt 00:00:07]} Rb2+ {[%clk 00:01:36]} {[%emt 00:00:04]} 46. Kf1 {[%clk
00:00:12]} {[%emt 00:00:07]} Rxb4 {[%clk 00:01:37]} {[%emt 00:00:04]} 47. c6
{[%clk 00:00:12]} {[%emt 00:00:05]} Rb2 {[%clk 00:01:27]} {[%emt 00:00:12]} 48.
Re8 {[%clk 00:00:11]} {[%emt 00:00:07]} Rf2+ {[%clk 00:01:28]} {[%emt
00:00:05]} 49. Ke1 {[%clk 00:00:12]} {[%emt 00:00:04]} Re2+ {[%clk 00:01:32]}
{[%emt 00:00:01]} 50. Rxe2 {[%clk 00:00:15]} {[%emt 00:00:04]} 0-1

[Event "Open NK Rapid 2025"]
[Site "Helmond, Netherlands"]
[Date "2025.05.03"]
[Round "8.6"]
[White "Fridman, Daniel"]
[Black "Labruyere, Roger"]
[Result "1-0"]
[TimeControl "15+5"]
[WhiteFideId "11600454"]
[BlackFideId "1059505"]
[WhiteElo "2539"]
[BlackElo "2117"]

1. Nf3 {[%clk 00:15:07]} {[%emt 00:00:01]} d5 {[%clk 00:15:09]} {[%emt
00:00:02]} 2. g3 {[%clk 00:15:10]} {[%emt 00:00:02]} Nf6 {[%clk 00:15:13]}
{[%emt 00:00:02]} 3. Bg2 {[%clk 00:15:13]} {[%emt 00:00:01]} e6 {[%clk
00:15:17]} {[%emt 00:00:02]} 4. d4 {[%clk 00:15:15]} {[%emt 00:00:02]} Be7
{[%clk 00:15:17]} {[%emt 00:00:05]} 5. c4 {[%clk 00:15:19]} {[%emt 00:00:01]}
O-O {[%clk 00:15:21]} {[%emt 00:00:02]} 6. Qc2 {[%clk 00:15:22]} {[%emt
00:00:01]} dxc4 {[%clk 00:15:22]} {[%emt 00:00:04]} 7. Qxc4 {[%clk 00:15:25]}
{[%emt 00:00:02]} b6 {[%clk 00:15:26]} {[%emt 00:00:02]} 8. Bf4 {[%clk
00:14:52]} {[%emt 00:00:37]} Nd5 {[%clk 00:15:26]} {[%emt 00:00:05]} 9. Nc3
{[%clk 00:14:48]} {[%emt 00:00:09]} Ba6 {[%clk 00:15:26]} {[%emt 00:00:05]} 10.
Qb3 {[%clk 00:14:50]} {[%emt 00:00:03]} Nxf4 {[%clk 00:15:18]} {[%emt
00:00:14]} 11. gxf4 {[%clk 00:14:53]} {[%emt 00:00:02]} Bb7 {[%clk 00:15:22]}
{[%emt 00:00:01]} 12. Rd1 {[%clk 00:14:51]} {[%emt 00:00:06]} Nd7 {[%clk
00:15:20]} {[%emt 00:00:08]} 13. Qc2 {[%clk 00:14:27]} {[%emt 00:00:28]} Qc8
{[%clk 00:15:11]} {[%emt 00:00:14]} 14. O-O {[%clk 00:13:38]} {[%emt 00:00:54]}
c5 {[%clk 00:15:01]} {[%emt 00:00:16]} 15. d5 {[%clk 00:13:39]} {[%emt
00:00:03]} Nf6 {[%clk 00:13:50]} {[%emt 00:01:16]} 16. d6 {[%clk 00:13:40]}
{[%emt 00:00:04]} Bd8 {[%clk 00:13:53]} {[%emt 00:00:03]} 17. e4 {[%clk
00:13:40]} {[%emt 00:00:05]} Nd7 {[%clk 00:13:31]} {[%emt 00:00:26]} 18. e5
{[%clk 00:12:45]} {[%emt 00:01:00]} f6 {[%clk 00:13:32]} {[%emt 00:00:05]} 19.
Ne4 {[%clk 00:12:23]} {[%emt 00:00:26]} fxe5 {[%clk 00:13:26]} {[%emt
00:00:11]} 20. fxe5 {[%clk 00:11:38]} {[%emt 00:00:50]} Rf5 {[%clk 00:13:02]}
{[%emt 00:00:29]} 21. Rd2 {[%clk 00:08:20]} {[%emt 00:03:22]} Nxe5 {[%clk
00:12:30]} {[%emt 00:00:38]} 22. Nxe5 {[%clk 00:08:23]} {[%emt 00:00:02]} Rxe5
{[%clk 00:12:34]} 23. f4 {[%clk 00:08:25]} {[%emt 00:00:03]} Rd5 {[%clk
00:11:40]} {[%emt 00:01:00]} 24. Ng5 {[%clk 00:08:27]} {[%emt 00:00:02]} Rxg5
{[%clk 00:11:43]} {[%emt 00:00:03]} 25. fxg5 {[%clk 00:08:25]} {[%emt
00:00:06]} Bxg5 {[%clk 00:11:40]} {[%emt 00:00:08]} 26. Rd3 {[%clk 00:08:01]}
{[%emt 00:00:29]} Rb8 {[%clk 00:08:27]} {[%emt 00:03:19]} 27. d7 {[%clk
00:06:26]} {[%emt 00:01:40]} Qd8 {[%clk 00:08:28]} {[%emt 00:00:04]} 28. Bxb7
{[%clk 00:06:15]} {[%emt 00:00:15]} Rxb7 {[%clk 00:08:29]} {[%emt 00:00:04]} 29.
Qg2 {[%clk 00:06:17]} {[%emt 00:00:02]} Rb8 {[%clk 00:08:16]} {[%emt 00:00:19]}
30. Qc6 {[%clk 00:04:49]} {[%emt 00:01:33]} h6 {[%clk 00:07:48]} {[%emt
00:00:34]} 31. Qxe6+ {[%clk 00:04:49]} {[%emt 00:00:04]} Kh8 {[%clk 00:07:52]}
{[%emt 00:00:01]} 32. Re1 {[%clk 00:04:20]} {[%emt 00:00:33]} Qc7 {[%clk
00:05:41]} {[%emt 00:02:18]} 33. Qf7 {[%clk 00:04:04]} {[%emt 00:00:20]} Bf6
{[%clk 00:04:48]} {[%emt 00:00:59]} 34. Re8+ {[%clk 00:04:05]} {[%emt
00:00:03]} Kh7 {[%clk 00:04:52]} {[%emt 00:00:02]} 35. Rxb8 {[%clk 00:03:37]}
{[%emt 00:00:32]} Qxb8 {[%clk 00:04:56]} {[%emt 00:00:02]} 36. Qxf6 {[%clk
00:03:40]} {[%emt 00:00:02]} 1-0

[Event "Open NK Rapid 2025"]
[Site "Helmond, Netherlands"]
[Date "2025.05.03"]
[Round "8.7"]
[White "Cernov, Henrik"]
[Black "Kurt, Sascha"]
[Result "1/2-1/2"]
[TimeControl "15+5"]
[WhiteFideId "16258312"]
[BlackFideId "1082647"]
[WhiteElo "2291"]
[BlackElo "1953"]

1. e4 {[%clk 00:15:09]} c5 {[%clk 00:15:08]} {[%emt 00:00:03]} 2. Nf3 {[%clk
00:15:13]} {[%emt 00:00:01]} d6 {[%clk 00:15:12]} {[%emt 00:00:01]} 3. Bc4
{[%clk 00:15:17]} e6 {[%clk 00:15:09]} {[%emt 00:00:08]} 4. Nc3 {[%clk
00:15:17]} {[%emt 00:00:06]} Nf6 {[%clk 00:15:08]} {[%emt 00:00:06]} 5. d4
{[%clk 00:15:08]} {[%emt 00:00:13]} cxd4 {[%clk 00:15:11]} {[%emt 00:00:02]} 6.
Qxd4 {[%clk 00:15:12]} Nc6 {[%clk 00:15:14]} {[%emt 00:00:02]} 7. Qd3 {[%clk
00:15:17]} Be7 {[%clk 00:15:10]} {[%emt 00:00:09]} 8. Bf4 {[%clk 00:15:18]}
{[%emt 00:00:03]} O-O {[%clk 00:15:09]} {[%emt 00:00:06]} 9. O-O-O {[%clk
00:14:53]} {[%emt 00:00:32]} e5 {[%clk 00:15:09]} {[%emt 00:00:04]} 10. Bg5
{[%clk 00:14:40]} {[%emt 00:00:19]} Ng4 {[%clk 00:13:51]} {[%emt 00:01:23]} 11.
Bxe7 {[%clk 00:14:21]} {[%emt 00:00:24]} Qxe7 {[%clk 00:13:45]} {[%emt
00:00:11]} 12. Rd2 {[%clk 00:13:42]} {[%emt 00:00:44]} Be6 {[%clk 00:12:35]}
{[%emt 00:01:15]} 13. Bxe6 {[%clk 00:13:13]} {[%emt 00:00:34]} Qxe6 {[%clk
00:12:37]} {[%emt 00:00:02]} 14. Nd5 {[%clk 00:12:11]} {[%emt 00:01:07]} Rac8
{[%clk 00:11:03]} {[%emt 00:01:39]} 15. h3 {[%clk 00:11:57]} {[%emt 00:00:20]}
Nh6 {[%clk 00:11:05]} {[%emt 00:00:03]} 16. g4 {[%clk 00:10:21]} {[%emt
00:01:41]} Kh8 {[%clk 00:10:57]} {[%emt 00:00:12]} 17. Rhd1 {[%clk 00:09:59]}
{[%emt 00:00:27]} Ng8 {[%clk 00:10:07]} {[%emt 00:00:55]} 18. Kb1 {[%clk
00:09:10]} {[%emt 00:00:55]} f6 {[%clk 00:09:53]} {[%emt 00:00:19]} 19. Qa3
{[%clk 00:08:49]} {[%emt 00:00:26]} b5 {[%clk 00:06:31]} {[%emt 00:03:27]} 20.
Ne3 {[%clk 00:07:52]} {[%emt 00:01:02]} b4 {[%clk 00:06:34]} {[%emt 00:00:02]}
21. Qb3 {[%clk 00:07:45]} {[%emt 00:00:12]} Qxb3 {[%clk 00:05:54]} {[%emt
00:00:45]} 22. axb3 {[%clk 00:07:44]} {[%emt 00:00:06]} Nge7 {[%clk 00:05:44]}
{[%emt 00:00:15]} 23. Rxd6 {[%clk 00:06:34]} {[%emt 00:01:15]} Rfd8 {[%clk
00:05:48]} 24. Nc4 {[%clk 00:06:09]} {[%emt 00:00:31]} Kg8 {[%clk 00:05:40]}
{[%emt 00:00:12]} 25. g5 {[%clk 00:04:30]} {[%emt 00:01:44]} Kf7 {[%clk
00:05:44]} {[%emt 00:00:01]} 26. Nh2 {[%clk 00:04:35]} Nd4 {[%clk 00:04:39]}
{[%emt 00:01:08]} 27. gxf6 {[%clk 00:04:01]} {[%emt 00:00:40]} gxf6 {[%clk
00:04:41]} {[%emt 00:00:03]} 28. Ng4 {[%clk 00:03:54]} {[%emt 00:00:12]} Ng8
{[%clk 00:04:39]} {[%emt 00:00:07]} 29. Ncxe5+ {[%clk 00:03:29]} {[%emt
00:00:30]} fxe5 {[%clk 00:04:41]} {[%emt 00:00:03]} 30. Nxe5+ {[%clk 00:03:33]}
{[%emt 00:00:01]} Ke7 {[%clk 00:04:44]} {[%emt 00:00:02]} 31. R6xd4 {[%clk
00:03:36]} {[%emt 00:00:02]} Rxd4 {[%clk 00:04:46]} {[%emt 00:00:03]} 32. Rxd4
{[%clk 00:03:40]} a5 {[%clk 00:04:39]} {[%emt 00:00:12]} 33. Nd3 {[%clk
00:02:32]} {[%emt 00:01:13]} Nf6 {[%clk 00:04:35]} {[%emt 00:00:08]} 34. e5
{[%clk 00:02:29]} {[%emt 00:00:09]} Nd7 {[%clk 00:04:39]} {[%emt 00:00:01]} 35.
Rh4 {[%clk 00:02:25]} {[%emt 00:00:09]} Ke6 {[%clk 00:04:39]} {[%emt 00:00:06]}
36. Rxh7 {[%clk 00:02:23]} {[%emt 00:00:07]} Rf8 {[%clk 00:04:26]} {[%emt
00:00:17]} 37. f4 {[%clk 00:02:06]} {[%emt 00:00:22]} Rf5 {[%clk 00:03:59]}
{[%emt 00:00:32]} 38. h4 {[%clk 00:01:49]} {[%emt 00:00:22]} Nf8 {[%clk
00:04:03]} 39. Rh6+ {[%clk 00:01:51]} {[%emt 00:00:02]} Kd5 {[%clk 00:04:07]}
{[%emt 00:00:02]} 40. Ra6 {[%clk 00:01:21]} {[%emt 00:00:35]} Ke4 {[%clk
00:04:06]} {[%emt 00:00:05]} 41. Rxa5 {[%clk 00:01:13]} {[%emt 00:00:14]} Ne6
{[%clk 00:04:10]} {[%emt 00:00:01]} 42. Rb5 {[%clk 00:01:08]} {[%emt 00:00:09]}
Ke3 {[%clk 00:04:07]} {[%emt 00:00:08]} 43. Rxb4 {[%clk 00:01:07]} {[%emt
00:00:07]} Rh5 {[%clk 00:04:11]} 44. Rb6 {[%clk 00:00:57]} {[%emt 00:00:15]}
Nd4 {[%clk 00:04:12]} {[%emt 00:00:04]} 45. c3 {[%clk 00:00:32]} {[%emt
00:00:30]} Nf5 {[%clk 00:04:04]} {[%emt 00:00:12]} 46. Nb4 {[%clk 00:00:32]}
{[%emt 00:00:06]} Rxh4 {[%clk 00:04:06]} {[%emt 00:00:04]} 47. Rf6 {[%clk
00:00:22]} {[%emt 00:00:15]} Kxf4 {[%clk 00:04:02]} {[%emt 00:00:08]} 48. e6
{[%clk 00:00:18]} {[%emt 00:00:09]} Ke5 {[%clk 00:04:03]} {[%emt 00:00:04]} 49.
Rg6 {[%clk 00:00:21]} {[%emt 00:00:01]} Ne7 {[%clk 00:04:04]} {[%emt 00:00:04]}
50. Rg2 {[%clk 00:00:17]} {[%emt 00:00:10]} Kxe6 {[%clk 00:04:07]} {[%emt
00:00:03]} 51. Kc2 {[%clk 00:00:20]} {[%emt 00:00:01]} Kd6 {[%clk 00:04:08]}
{[%emt 00:00:04]} 52. Rd2+ {[%clk 00:00:23]} {[%emt 00:00:02]} Kc5 {[%clk
00:04:08]} {[%emt 00:00:06]} 53. Nd3+ {[%clk 00:00:25]} {[%emt 00:00:02]} Kb6
{[%clk 00:04:10]} {[%emt 00:00:03]} 54. Re2 {[%clk 00:00:26]} {[%emt 00:00:04]}
Nc6 {[%clk 00:04:11]} {[%emt 00:00:04]} 55. b4 {[%clk 00:00:30]} {[%emt
00:00:01]} Rh3 {[%clk 00:04:10]} {[%emt 00:00:07]} 56. Kd2 {[%clk 00:00:28]}
{[%emt 00:00:06]} Rg3 {[%clk 00:04:09]} {[%emt 00:00:05]} 57. b3 {[%clk
00:00:23]} {[%emt 00:00:12]} Rh3 {[%clk 00:04:11]} {[%emt 00:00:02]} 58. c4
{[%clk 00:00:24]} {[%emt 00:00:04]} Nd4 {[%clk 00:04:13]} {[%emt 00:00:03]} 59.
Re4 {[%clk 00:00:20]} {[%emt 00:00:08]} Rh2+ {[%clk 00:04:02]} {[%emt
00:00:17]} 60. Ke3 {[%clk 00:00:17]} {[%emt 00:00:07]} Nxb3 {[%clk 00:03:58]}
{[%emt 00:00:10]} 61. Re6+ {[%clk 00:00:22]} Kc7 {[%clk 00:04:02]} {[%emt
00:00:02]} 62. Nf2 {[%clk 00:00:18]} {[%emt 00:00:08]} Rh4 {[%emt 00:00:24]} 63.
Re4 {[%clk 00:00:18]} Rh2 {[%clk 00:03:47]} {[%emt 00:00:06]} 64. Rg4 {[%clk
00:00:16]} {[%emt 00:00:07]} Kc6 {[%clk 00:03:38]} {[%emt 00:00:14]} 65. Rg6+
{[%clk 00:00:20]} {[%emt 00:00:01]} Kc7 {[%clk 00:03:42]} {[%emt 00:00:01]} 66.
Rg1 {[%clk 00:00:24]} {[%emt 00:00:01]} Rh4 {[%clk 00:03:31]} {[%emt 00:00:17]}
67. Rd1 {[%clk 00:00:25]} {[%emt 00:00:03]} Rxc4 {[%clk 00:03:33]} {[%emt
00:00:03]} 68. Nd3 {[%clk 00:00:15]} {[%emt 00:00:16]} Nd4 {[%clk 00:03:23]}
{[%emt 00:00:14]} 69. Rh1 {[%clk 00:00:16]} {[%emt 00:00:03]} Nc6 {[%clk
00:03:26]} {[%emt 00:00:03]} 70. b5 {[%clk 00:00:18]} {[%emt 00:00:03]} Na5
{[%clk 00:03:26]} {[%emt 00:00:05]} 71. Rh6 {[%clk 00:00:18]} {[%emt 00:00:05]}
Nb7 {[%clk 00:03:23]} {[%emt 00:00:08]} 72. b6+ {[%clk 00:00:17]} {[%emt
00:00:06]} Kc8 {[%clk 00:03:26]} {[%emt 00:00:02]} 73. Rh8+ {[%clk 00:00:12]}
{[%emt 00:00:10]} Nd8 {[%clk 00:03:29]} {[%emt 00:00:02]} 74. b7+ {[%clk
00:00:14]} {[%emt 00:00:03]} Kxb7 {[%clk 00:03:34]} 75. Rxd8 {[%clk 00:00:18]}
{[%emt 00:00:01]} Rh4 {[%clk 00:03:40]} {[%emt 00:00:03]} 76. Rd5 {[%clk
00:00:25]} {[%emt 00:00:02]} Kc6 {[%clk 00:03:42]} {[%emt 00:00:03]} 77. Rf5
{[%clk 00:00:28]} {[%emt 00:00:02]} Kd6 {[%clk 00:03:45]} {[%emt 00:00:03]} 78.
Nf4 {[%clk 00:00:30]} {[%emt 00:00:03]} Rh1 {[%clk 00:03:47]} {[%emt 00:00:03]}
79. Rd5+ {[%clk 00:00:33]} {[%emt 00:00:03]} Kc6 {[%clk 00:03:51]} 80. Rg5
{[%clk 00:00:36]} {[%emt 00:00:02]} Rd1 {[%clk 00:03:53]} {[%emt 00:00:03]} 81.
Nd3 {[%clk 00:00:39]} {[%emt 00:00:02]} Ra1 {[%clk 00:03:53]} {[%emt 00:00:05]}
82. Kd4 {[%clk 00:00:36]} {[%emt 00:00:08]} Ra4+ {[%clk 00:03:56]} {[%emt
00:00:01]} 83. Kc3 {[%clk 00:00:41]} Rh4 {[%clk 00:03:56]} {[%emt 00:00:04]} 84.
Rf5 {[%clk 00:00:37]} {[%emt 00:00:10]} Kb6 {[%clk 00:03:59]} {[%emt 00:00:02]}
85. Nb2 {[%clk 00:00:37]} {[%emt 00:00:05]} Rh3+ {[%clk 00:04:02]} {[%emt
00:00:02]} 86. Kb4 {[%clk 00:00:41]} {[%emt 00:00:01]} Rh4+ {[%clk 00:04:05]}
87. Nc4+ {[%clk 00:00:46]} Kc6 {[%clk 00:04:09]} {[%emt 00:00:02]} 88. Kc3
{[%clk 00:00:33]} {[%emt 00:00:18]} Rh3+ {[%clk 00:04:10]} {[%emt 00:00:03]} 89.
Kd4 {[%clk 00:00:37]} Rh4+ {[%clk 00:04:13]} {[%emt 00:00:02]} 90. Kd3 {[%clk
00:00:42]} Rh3+ {[%clk 00:04:16]} {[%emt 00:00:02]} 91. Ne3 {[%clk 00:00:46]}
Rh4 {[%clk 00:04:17]} {[%emt 00:00:03]} 92. Ng2 {[%clk 00:00:46]} {[%emt
00:00:05]} Ra4 {[%clk 00:04:18]} {[%emt 00:00:05]} 93. Nf4 {[%clk 00:00:49]}
{[%emt 00:00:02]} Ra3+ {[%clk 00:04:22]} {[%emt 00:00:02]} 94. Ke4 {[%clk
00:00:50]} {[%emt 00:00:04]} Ra4+ {[%clk 00:04:26]} 95. Ke3 {[%clk 00:00:54]}
Ra3+ {[%clk 00:04:28]} {[%emt 00:00:03]} 96. Nd3 {[%clk 00:00:58]} Ra4 {[%clk
00:04:30]} {[%emt 00:00:03]} 97. Rh5 {[%clk 00:00:52]} {[%emt 00:00:12]} Kd6
{[%clk 00:04:30]} {[%emt 00:00:04]} 98. Rh6+ {[%clk 00:00:53]} {[%emt
00:00:03]} Ke7 {[%clk 00:04:30]} {[%emt 00:00:06]} 99. Nf4 {[%clk 00:00:52]}
{[%emt 00:00:06]} Ra3+ {[%clk 00:04:31]} {[%emt 00:00:05]} 100. Ke4 {[%clk
00:00:56]} Ra4+ {[%clk 00:04:35]} 101. Ke5 {[%clk 00:01:01]} Kd7 {[%clk
00:04:33]} {[%emt 00:00:06]} 102. Rd6+ {[%clk 00:00:59]} {[%emt 00:00:06]} Kc7
{[%clk 00:04:34]} {[%emt 00:00:05]} 103. Ne6+ {[%clk 00:00:54]} {[%emt
00:00:11]} Kb8 {[%clk 00:04:24]} {[%emt 00:00:14]} 104. Nc5 {[%clk 00:00:43]}
{[%emt 00:00:16]} Ra5 {[%clk 00:04:10]} {[%emt 00:00:19]} 105. Kd5 {[%clk
00:00:46]} {[%emt 00:00:02]} Ra1 {[%clk 00:03:45]} {[%emt 00:00:30]} 106. Kc6
{[%clk 00:00:37]} {[%emt 00:00:13]} Rc1 {[%clk 00:03:46]} {[%emt 00:00:05]} 107.
Rd2 {[%clk 00:00:24]} {[%emt 00:00:18]} Ka7 {[%clk 00:03:42]} {[%emt 00:00:09]}
108. Rb2 {[%clk 00:00:16]} {[%emt 00:00:13]} Rc3 {[%clk 00:03:01]} {[%emt
00:00:46]} 109. Ra2+ {[%clk 00:00:12]} {[%emt 00:00:09]} Kb8 {[%clk 00:03:03]}
{[%emt 00:00:03]} 110. Kb6 {[%clk 00:00:16]} Rh3 {[%clk 00:02:52]} {[%emt
00:00:16]} 111. Nd7+ {[%clk 00:00:20]} {[%emt 00:00:02]} Kc8 {[%clk 00:02:56]}
{[%emt 00:00:01]} 112. Ra8+ {[%clk 00:00:23]} {[%emt 00:00:02]} Kxd7 {[%clk
00:03:01]} 1/2-1/2